bitfinex-derivatives/quotes_ETHF0:USTF0_20250317
["timestamp","ask_amount","ask_price","bid_price","bid_amount"]
[1742246728794,1.03074,1940.6,1940.5,1.0307]
[1742246728995,2.37614,1940.6,1940.5,1.0307]
[1742246729194,2.37614,1940.6,1940.5,2.4155]
[1742246730100,2.37614,1940.6,1940.5,2.41554]
[1742246742009,2.37614,1940.6,1940.5,1.3848]
[1742246742613,2.37614,1940.6,1940.5,2.41554]
[1742246742916,2.37614,1940.6,1940.5,1.3848]
[1742246744616,2.37614,1940.6,1940.5,2.41554]
[1742246747716,2.37614,1940.6,1940.5,1.3848]
[1742246748116,1.3454,1940.6,1940.5,2.41554]
[1742246748315,1.03069,1940.6,1940.5,2.41554]
[1742246749014,1.03837101,1940.7,1940.6,1.03069]
[1742246749812,0.00772101,1940.7,1940.6,1.03069]
[1742246751808,1.03054,1940.9,1940.8,1.03058]
[1742246752011,1.03054,1940.9,1940.8,4.23838]
[1742246752213,2.34892,1941.0,1940.9,1.03053]
[1742246752422,2.34892,1941.0,1940.9,2.46133]
[1742246767633,2.57543,1941.6,1941.0,1.03047]
[1742246767827,1.0303,1941.4,1941.3,1.03026]
[1742246768026,41.8303,1941.4,1941.3,2.42486]
[1742246768335,43.1558,1941.4,1941.3,2.42486]
[1742246769621,1.3255,1941.4,1941.3,2.42486]
[1742246769933,0.00772101,1941.5,1941.4,1.03026]
[1742246770232,0.00772101,1941.5,1941.4,5.63266]
[1742246771130,0.00772101,1941.5,1941.4,9.23266]
[1742246771333,2.3386,1941.9,1941.8,1.03005]
[1742246771630,1.3086,1941.9,1941.8,1.03005]
[1742246771840,1.3086,1941.9,1941.8,4.23785]
[1742246772533,2.3386,1941.9,1941.8,4.23785]
[1742246772933,1.3086,1941.9,1941.8,4.23785]
[1742246773640,2.3386,1941.9,1941.8,4.23785]
[1742246774235,2.3386,1941.9,1941.8,3.2078]
[1742246774426,1.03005,1941.8,1941.7,2.46606]
[1742246774632,2.40155,1941.8,1941.7,2.46606]
[1742246775843,2.40155,1941.8,1941.7,5.67386]
[1742246776242,1.3715,1941.8,1941.7,5.67386]
[1742246776542,1.03004,1941.9,1941.8,1.03005]
[1742246777143,2.40434,1941.9,1941.8,1.03005]
[1742246782849,1.03004,1941.9,1941.8,1.03005]
[1742246783241,40.80772101,1942.0,1941.9,1.03]
[1742246783547,41.83766101,1942.0,1941.9,4.2378]
[1742246783743,40.80772101,1942.0,1941.9,4.2378]
[1742246783943,41.83766101,1942.0,1941.9,4.2378]
[1742246785551,41.83766101,1942.0,1941.9,5.5511]
[1742246787355,41.83766101,1942.0,1941.9,4.2378]
[1742246787540,41.83766101,1942.0,1941.9,5.6026]
[1742246789051,43.22806101,1942.0,1941.9,5.6026]
[1742246797153,40.80772101,1942.0,1941.9,5.6026]
[1742246797357,5.50543,1942.4,1942.1,1.02989]
[1742246797558,5.50543,1942.4,1942.3,1.02978]
[1742246797753,46.30543,1942.4,1942.3,1.02978]
[1742246798461,1.02978,1942.3,1942.2,2.38205101]
[1742246798661,1.02978,1942.3,1942.2,1.35222101]
[1742246799855,1.02978,1942.3,1942.2,0.00772101]
[1742246800061,1.02978,1942.3,1942.2,1.40572101]
[1742246800255,1.02978,1942.3,1942.2,0.00772101]
[1742246800460,1.03,1941.9,1941.8,2.42803]
[1742246800760,1.03,1941.9,1941.8,1.03003]
[1742246801351,1.0301,1941.8,1941.7,1.03006]
[1742246801557,1.0301,1941.8,1941.7,0.00772101]
[1742246802357,2.3951,1941.8,1941.7,0.00772101]
[1742246802862,2.3951,1941.8,1941.7,1.03782101]
[1742246803360,2.3951,1941.8,1941.7,0.00772101]
[1742246804556,2.3951,1941.8,1941.7,1.03782101]
[1742246809270,1.0301,1941.8,1941.7,0.00772101]
[1742246809470,2.4308,1941.8,1941.7,1.03782101]
[1742246811171,2.4308,1941.8,1941.7,0.00772101]
[1742246812465,1.03021,1941.5,1941.4,3.2078]
[1742246813774,2.57596,1941.2,1940.7,3.2078]
[1742246814070,9.28576,1941.2,1940.8,1.03056]
[1742246814372,1.03058,1940.8,1940.7,4.23839]
[1742246814968,1.03058,1940.8,1940.7,3.2078]
[1742246815467,1.03063,1940.7,1940.6,0.00772101]
[1742246816269,4.53163,1940.7,1940.6,0.00772101]
[1742246816672,5.84263,1940.7,1940.6,0.00772101]
[1742246816972,1.03079,1940.4,1940.3,3.2078]
[1742246817374,1.03095,1940.1,1940.0,0.9271]
[1742246817569,1.03106,1939.9,1939.8,6.7098]
[1742246817878,1.03106,1939.9,1939.8,3.2078]
[1742246818475,1.03106,1939.9,1939.8,4.23891]
[1742246819378,1.03104,1940.0,1939.9,1.03103]
[1742246819678,1.03106,1939.9,1939.8,4.23887]
[1742246820278,1.03106,1939.9,1939.8,5.62997]
[1742246820576,1.03106,1939.9,1939.8,4.5989]
[1742246820879,1.03104,1940.0,1939.9,1.03104]
[1742246821079,1.03104,1940.0,1939.9,2.42214]
[1742246822583,1.03104,1940.0,1939.9,2.42216]
[1742246824276,1.03104,1940.0,1939.9,1.3911]
[1742246824476,1.03104,1940.0,1939.9,2.42216]
[1742246825270,1.9023,1940.3,1939.9,3.96867]
[1742246825473,5.848,1940.8,1940.2,5.78498]
[1742246825684,1.0307,1940.7,1940.6,1.03067]
[1742246827195,4.54361,1940.8,1940.7,1.03063]
[1742246828602,1.03069,1940.7,1940.6,1.03065]
[1742246829798,6.10559,1940.7,1940.1,0.9506]
[1742246829985,1.03089,1940.3,1940.2,1.03084]
[1742246832195,3.53,1940.5,1940.2,5.78505]
[1742246832394,4.56081,1940.5,1940.4,1.03079]
[1742246833797,1.4118,1940.7,1940.6,1.03069]
[1742246834002,1.4118,1940.7,1940.5,1.0307]
[1742246834205,1.03073,1940.6,1940.5,1.0307]
[1742246838806,1.03072,1940.6,1940.5,1.03069]
[1742246840605,1.03072,1940.6,1940.5,2.36229]
[1742246841707,1.03072,1940.6,1940.5,1.3316]
[1742246842208,2.44002,1940.6,1940.5,1.3316]
[1742246842602,1.03074,1940.5,1940.4,4.23856]
[1742246842903,2.44004,1940.5,1940.4,4.23856]
[1742246846797,5.93604,1940.5,1940.4,4.23859]
[1742246855714,1.03085,1940.3,1940.2,1.331]
[1742246855910,4.50685,1940.3,1940.2,1.331]
[1742246856216,4.50685,1940.3,1939.8,5.15534]
[1742246856217,1.03101,1940.0,1939.8,1.03107]
[1742246856405,1.03106,1939.9,1939.8,1.03107]
[1742246857011,1.03116,1939.8,1939.7,1.03111]
[1742246859219,1.03116,1939.8,1939.7,2.39571]
[1742246861225,1.03116,1939.8,1939.7,1.03111]
[1742246863026,4.49797,1940.1,1939.8,3.60885]
[1742246863224,1.03106,1940.0,1939.9,1.03101]
[1742246866014,1.03872101,1940.1,1940.0,1.03101]
[1742246866815,1.03872101,1940.1,1940.0,4.23881]
[1742246867319,1.03867101,1940.1,1940.0,4.23881]
[1742246869217,0.00772101,1940.1,1940.0,4.23881]
[1742246873227,1.03867101,1940.1,1940.0,4.23881]
[1742246874530,0.00772101,1940.1,1940.0,4.23881]
[1742246875523,1.03867101,1940.1,1940.0,4.23881]
[1742246879724,1.03106,1940.0,1939.9,1.03101]
[1742246881130,1.03116,1939.7,1939.6,4.239]
[1742246881439,1.03116,1939.7,1939.6,1.0312]
[1742246882532,1.03121,1939.7,1939.6,1.03119]
[1742246882730,1.03121,1939.7,1939.6,4.23899]
[1742246888142,1.03121,1939.7,1939.6,4.23902]
[1742246888444,4.47512,1939.9,1939.8,1.03111]
[1742246889543,1.03116,1939.8,1939.7,1.03113]
[1742246891235,4.46016,1939.8,1939.7,1.03113]
[1742246895039,4.46016,1939.8,1939.6,3.2078]
[1742246895233,1.03116,1939.7,1939.6,4.23898]
[1742246896741,1.03116,1939.7,1939.6,3.2078]
[1742246896943,1.03127,1939.5,1939.4,4.23909]
[1742246897337,4.45426,1939.6,1939.5,1.03127]
[1742246898346,5.39176,1939.6,1939.5,1.03127]
[1742246899046,6.77346,1939.6,1939.5,2.37227]
[1742246900134,5.79294101,1940.1,1939.6,2.57805]
[1742246900340,2.41285,1939.8,1939.7,1.341]
[1742246900541,2.41281,1939.8,1939.7,2.37211]
[1742246901249,2.94065,1940.0,1939.9,1.03106]
[1742246901438,4.32235,1940.0,1939.9,1.03106]
[1742246901640,7.74535,1940.0,1939.9,1.03106]
[1742246901847,1.03106,1939.9,1939.8,5.57987]
[1742246902046,2.42356,1939.9,1939.8,1.03107]
[1742246904046,1.03116,1939.8,1939.7,1.03113]
[1742246904243,3.37506,1939.8,1939.7,1.03113]
[1742246906254,2.42366,1939.8,1939.7,1.03113]
[1742246907053,2.42366,1939.8,1939.7,1.97403]
[1742246909053,2.42361,1939.8,1939.7,1.97403]
[1742246909451,4.3804,1939.9,1939.7,1.97403]
[1742246909655,6.79329,1939.9,1939.8,4.23891]
[1742246910155,4.45705,1940.0,1939.9,1.03106]
[1742246910350,5.83885,1940.0,1939.9,1.97446]
[1742246912360,5.83881,1940.0,1939.9,1.97446]
[1742246912561,0.00772101,1940.1,1940.0,1.03101]
[1742246912863,0.00772101,1940.1,1940.0,4.23881]
[1742246912864,1.37002101,1940.1,1940.0,4.23881]
[1742246913565,2.40097101,1940.1,1940.0,4.23881]
[1742246913959,0.00772101,1940.1,1940.0,4.23881]
[1742246915165,0.00772101,1940.1,1940.0,7.66181]
[1742246915364,0.00772101,1940.1,1940.0,8.98191]
[1742246925267,0.00772101,1940.1,1940.0,5.77411]
[1742246925473,0.00772101,1940.1,1940.0,8.98191]
[1742246929176,0.00772101,1940.1,1940.0,5.55891]
[1742246929871,2.42017101,1940.1,1940.0,5.55891]
[1742246930070,2.42017101,1940.1,1940.0,4.23881]
[1742246932377,2.42017101,1940.1,1940.0,5.64581]
[1742246932886,1.38922101,1940.1,1940.0,5.64581]
[1742246933682,0.00772101,1940.1,1940.0,5.64581]
[1742246934889,1.38362101,1940.1,1940.0,5.64581]
[1742246935585,0.9539,1940.2,1940.1,1.03095]
[1742246935789,2.347,1940.2,1940.1,2.39585]
[1742246938491,2.347,1940.2,1940.1,3.40655]
[1742246942397,2.347,1940.2,1940.1,6.61435]
[1742246943992,2.347,1940.2,1940.1,5.60365]
[1742246944792,3.3779,1940.2,1940.1,5.60365]
[1742246945099,2.347,1940.2,1940.1,5.60365]
[1742246948498,2.347,1940.2,1940.1,2.39585]
[1742246948798,2.347,1940.2,1940.1,5.60365]
[1742246955015,3.3779,1940.2,1940.1,5.60365]
[1742246955209,2.347,1940.2,1940.1,5.60365]
[1742246956410,3.3779,1940.2,1940.1,5.60365]
[1742246957717,2.347,1940.2,1940.1,5.60365]
[1742246958717,3.3779,1940.2,1940.1,5.60365]
[1742246959413,2.347,1940.2,1940.1,5.60365]
[1742246961421,3.3779,1940.2,1940.1,5.60365]
[1742246961620,2.347,1940.2,1940.1,5.60365]
[1742246964222,3.3779,1940.2,1940.1,5.60365]
[1742246965223,3.3779,1940.2,1940.1,3.2078]
[1742246966425,1.03095,1940.1,1940.0,0.00772101]
[1742246966626,5.86135,1940.1,1940.0,1.03873101]
[1742246966929,5.86135,1940.1,1940.0,0.00772101]
[1742246967918,46.66135,1940.1,1940.0,0.00772101]
[1742246968324,46.66135,1940.1,1940.0,1.03873101]
[1742246969123,46.66135,1940.1,1940.0,0.00772101]
[1742246971130,1.03111,1939.8,1939.7,5.67743]
[1742246971831,1.03116,1939.7,1939.6,11.68228749]
[1742246972024,3.37526,1939.7,1939.6,12.71350749]
[1742246981336,2.3441,1939.7,1939.6,12.71350749]
[1742246981527,3.37526,1939.7,1939.6,12.71350749]
[1742246986638,3.37526,1939.7,1939.6,2.46972]
[1742246990834,4.36696,1939.7,1939.6,2.46972]
[1742247000449,1.03132,1939.4,1939.3,1.03134]
[1742247000841,1.98772,1939.4,1939.3,1.03134]
[1742247001241,1.03132,1939.4,1939.3,1.03134]
[1742247001440,1.03132,1939.4,1939.3,4.23914]
[1742247001649,1.03132,1939.4,1939.3,5.23474]
[1742247001952,1.03132,1939.4,1939.3,6.62124]
[1742247006250,2.42982,1939.4,1939.3,6.62124]
[1742247009350,2.42982,1939.4,1939.3,5.62564]
[1742247009549,4.38582,1939.4,1939.3,1.3865]
[1742247011851,7.80582,1939.4,1939.3,1.3865]
[1742247016559,1.03143,1939.2,1939.1,5.21714]
[1742247016761,1.03143,1939.2,1939.1,6.57814]
[1742247017155,1.98213,1939.2,1939.1,6.57814]
[1742247017361,1.98213,1939.2,1939.1,5.60024]
[1742247017553,1.03148,1939.1,1939.0,10.22763084]
[1742247017869,3.35888,1939.1,1939.0,11.25913084]
[1742247018868,1.03154,1939.0,1938.9,1.3602]
[1742247019067,6.77474,1939.0,1938.9,1.3602]
[1742247019363,3.35474,1939.0,1938.9,1.3602]
[1742247019564,6.77474,1939.0,1938.9,1.3602]
[1742247019962,8.32207,1939.0,1938.7,1.03168]
[1742247020166,1.03164,1938.8,1938.7,1.03168]
[1742247020557,1.03175,1938.6,1938.5,1.03177]
[1742247021462,2.35835,1938.6,1938.5,1.03177]
[1742247022760,5.77935,1938.6,1938.5,1.03177]
[1742247026663,5.77935,1938.6,1938.4,1.3332]
[1742247026664,1.0318,1938.5,1938.4,2.36501]
[1742247026860,2.4196,1938.5,1938.4,2.36501]
[1742247027760,3.3993,1938.5,1938.4,2.36501]
[1742247029268,2.3675,1938.5,1938.4,2.36501]
[1742247029469,3.3993,1938.5,1938.4,2.36501]
[1742247035074,2.3675,1938.5,1938.4,2.36501]
[1742247035263,2.4196,1938.5,1938.4,2.36501]
[1742247039370,1.912,1938.7,1938.4,1.3332]
[1742247039567,4.4527,1938.7,1938.6,1.0317]
[1742247039970,4.4527,1938.7,1938.6,2.3938]
[1742247040170,5.8478,1938.7,1938.6,2.3938]
[1742247040971,1.0317,1938.7,1938.6,2.3938]
[1742247041273,3.421,1938.9,1938.8,1.03164]
[1742247041471,4.45259,1938.9,1938.8,1.03164]
[1742247041674,4.45259,1938.9,1938.8,3.35014]
[1742247041868,4.45259,1938.9,1938.8,4.32324]
[1742247043174,3.421,1938.9,1938.8,4.32324]
[1742247046071,3.421,1938.9,1938.5,3.2078]
[1742247046279,1.0317,1938.7,1938.6,1.3045]
[1742247046479,1.03186,1938.4,1938.3,4.23967]
[1742247046962,1.03186,1938.4,1938.3,3.2078]
[1742247047166,1.03186,1938.4,1938.3,4.23967]
[1742247047373,1.03186,1938.4,1938.3,3.2078]
[1742247047571,1.03191,1938.3,1938.2,2.0478]
[1742247047774,1.03191,1938.3,1938.2,2.05515]
[1742247048368,2.00877,1938.4,1938.3,1.03191]
[1742247048568,1.03191,1938.3,1938.2,2.05513]
[1742247048968,2.47301,1938.3,1938.2,3.38243]
[1742247050875,2.47301,1938.3,1938.2,2.3505]
[1742247051073,2.47301,1938.3,1938.2,3.38246]
[1742247051468,5.89301,1938.3,1938.2,2.3505]
[1742247053284,5.89301,1938.3,1938.2,3.38246]
[1742247053581,5.89301,1938.3,1938.2,2.3505]
[1742247054571,5.89301,1938.3,1938.2,3.38246]
[1742247055177,1.03196,1938.2,1938.1,4.2398]
[1742247055380,2.33216,1938.2,1938.1,4.2398]
[1742247055775,2.03224,1938.5,1938.1,3.2078]
[1742247055977,5.45223,1938.5,1938.4,1.03186]
[1742247056481,3.33243,1938.5,1938.4,1.03186]
[1742247056887,3.33243,1938.5,1938.4,3.39316]
[1742247057385,1.03183,1938.5,1938.4,3.39316]
[1742247058484,2.37463,1938.5,1938.4,3.39316]
[1742247062787,2.37463,1938.5,1938.4,2.43696]
[1742247062983,2.37463,1938.5,1938.4,1.4051]
[1742247063179,2.37463,1938.5,1938.4,2.43696]
[1742247064590,2.37463,1938.5,1938.4,1.4051]
[1742247064792,2.37463,1938.5,1938.4,2.43696]
[1742247065184,2.37463,1938.5,1938.4,1.4051]
[1742247065888,1.03191,1938.3,1938.2,1.03192]
[1742247066587,2.05591,1938.3,1938.2,1.03192]
[1742247066993,2.05591,1938.3,1938.2,4.23972]
[1742247067193,3.44901,1938.3,1938.2,4.23972]
[1742247070686,3.44901,1938.3,1938.2,1.03192]
[1742247071193,1.0239,1938.4,1938.3,1.03191]
[1742247071394,3.42296,1938.4,1938.3,2.33261]
[1742247074498,3.2078,1938.8,1938.3,1.3007]
[1742247074698,6.00533101,1939.2,1938.6,5.78707]
[1742247075000,1.0316,1939.0,1938.9,1.03157]
[1742247075297,44.21922,1939.1,1939.0,1.03154]
[1742247075497,42.81172,1939.1,1939.0,1.03154]
[1742247076092,42.81172,1939.1,1939.0,2.37894]
[1742247080493,40.8,1939.1,1939.0,2.37894]
[1742247080698,40.8,1939.1,1939.0,3.35804]
[1742247080903,0.95742101,1939.2,1939.1,1.03148]
[1742247081103,0.95742101,1939.2,1939.1,2.46218]
[1742247081303,1.98885101,1939.2,1939.1,2.46218]
[1742247082999,0.95742101,1939.2,1939.1,2.46218]
[1742247083202,1.98885101,1939.2,1939.1,2.46218]
[1742247083698,0.95742101,1939.2,1939.1,2.46218]
[1742247083902,1.98885101,1939.2,1939.1,2.46218]
[1742247086406,1.03915101,1939.2,1939.1,2.46218]
[1742247089307,1.03915101,1939.2,1939.1,1.4307]
[1742247089809,1.03915101,1939.2,1939.1,2.46218]
[1742247090308,1.03915101,1939.2,1939.1,1.4307]
[1742247091202,1.03915101,1939.2,1939.1,2.46218]
[1742247095403,2.46235101,1939.2,1939.1,2.46218]
[1742247102611,1.43092101,1939.2,1939.1,2.46218]
[1742247102807,5.56486303,1940.2,1939.1,2.46218]
[1742247102808,3.2078,1940.0,1939.1,12.504]
[1742247103012,1.03116,1939.8,1939.7,1.03107]
[1742247103710,2.45686,1939.8,1939.7,2.38727]
[1742247103911,1.4257,1939.8,1939.7,2.38727]
[1742247104109,42.7532,1939.9,1939.8,1.03111]
[1742247104110,0.00772101,1939.9,1939.8,1.03111]
[1742247104712,0.00772101,1939.9,1939.8,4.23891]
[1742247105112,0.00772101,1939.9,1939.8,5.59511]
[1742247105715,3.2078,1940.4,1939.8,10.48]
[1742247106019,0.9773,1940.7,1940.6,1.03069]
[1742247106215,1.03045,1941.1,1940.6,5.99261]
[1742247106412,2.35812,1941.1,1941.0,1.03047]
[1742247106910,1.03053,1940.9,1940.8,1.03054]
[1742247107122,1.03069,1940.7,1940.6,1.03065]
[1742247107419,1.03069,1940.7,1940.6,1.03837101]
[1742247108212,2.35831,1940.8,1940.7,1.03063]
[1742247108412,1.03063,1940.7,1940.6,1.03836101]
[1742247108611,1.03063,1940.7,1940.6,0.00772101]
[1742247109415,2.35243,1940.7,1940.6,0.00772101]
[1742247110415,43.15243,1940.7,1940.6,0.00772101]
[1742247112209,43.15243,1940.7,1940.6,1.03841101]
[1742247112414,43.15243,1940.7,1940.6,0.00772101]
[1742247112907,43.15243,1940.7,1940.6,1.03841101]
[1742247113117,43.15243,1940.7,1940.6,0.00772101]
[1742247116931,43.15243,1940.7,1940.6,1.03841101]
[1742247117224,43.15243,1940.7,1940.6,0.00772101]
[1742247118424,2.35243,1940.7,1940.6,0.00772101]
[1742247125023,1.03079,1940.4,1940.3,10.24041745]
[1742247125228,1.03079,1940.4,1940.3,12.60846745]
[1742247125637,3.45129,1940.4,1940.3,11.57761745]
[1742247125829,3.45129,1940.4,1940.3,12.60846745]
[1742247126533,3.45129,1940.4,1940.3,11.57761745]
[1742247128835,3.45129,1940.4,1940.3,12.60846745]
[1742247129038,3.45129,1940.4,1940.3,2.36805]
[1742247129240,3.45129,1940.4,1940.3,1.3372]
[1742247134541,1.03085,1940.3,1940.2,0.00772101]
[1742247134743,3.38665,1940.3,1940.2,1.36242101]
[1742247135242,3.38665,1940.3,1940.2,2.39332101]
[1742247135734,3.38665,1940.3,1940.2,1.36242101]
[1742247135934,3.38665,1940.3,1940.2,2.39332101]
[1742247142044,1.03074,1940.6,1940.5,1.03069]
[1742247142245,1.96686,1940.7,1940.6,1.03069]
[1742247142746,1.03066,1940.7,1940.6,1.03069]
[1742247143046,3.29142,1940.8,1940.7,1.03063]
[1742247143346,3.29142,1940.8,1940.7,2.33163]
[1742247143743,4.144,1940.9,1940.8,1.03058]
[1742247143945,3.2078,1940.9,1940.8,2.33158]
[1742247144642,4.45011101,1941.2,1941.1,1.03042]
[1742247145037,5.75931101,1941.2,1941.1,2.33142]
[1742247145634,5.75931101,1941.2,1940.9,0.948]
[1742247145635,2.57606,1941.1,1940.9,0.948]
[1742247145839,1.4393,1941.0,1940.9,1.03047]
[1742247146648,2.46983,1941.0,1940.9,1.03047]
[1742247146850,2.46983,1941.0,1940.9,2.37647]
[1742247147749,3.48673,1941.0,1940.9,2.37647]
[1742247151852,1.03053,1941.0,1940.9,2.37647]
[1742247152251,1.03053,1941.0,1940.9,3.31387]
[1742247154653,2.35657,1941.1,1941.0,1.03047]
[1742247154952,1.03042,1941.1,1941.0,3.40457]
[1742247155148,3.39953101,1941.2,1941.1,1.03042]
[1742247155355,3.39953101,1941.2,1941.1,2.42762]
[1742247158454,2.36912101,1941.2,1941.1,2.42762]
[1742247158644,2.46209101,1941.2,1941.1,2.42762]
[1742247159753,2.46209101,1941.2,1941.1,1.3972]
[1742247161050,2.46209101,1941.2,1941.1,2.42762]
[1742247162449,2.46209101,1941.2,1941.1,1.3972]
[1742247163160,1.03047,1941.0,1940.9,1.97368]
[1742247163757,1.96297,1941.0,1940.9,1.97368]
[1742247164552,3.38827,1941.0,1940.9,3.30508]
[1742247165560,3.38827,1941.0,1940.9,1.3314]
[1742247173062,1.03053,1940.9,1940.8,1.03057]
[1742247173264,3.36483,1940.9,1940.8,2.36617]
[1742247173563,1.03053,1940.9,1940.8,2.36617]
[1742247173766,1.03053,1940.9,1940.8,3.31577]
[1742247174466,2.37653,1940.9,1940.8,3.31577]
[1742247178967,1.346,1940.9,1940.8,3.31577]
[1742247179268,1.03044,1941.1,1941.0,1.03047]
[1742247179465,1.03058,1940.9,1940.8,1.03052]
[1742247179764,1.03058,1940.9,1940.8,3.02462]
[1742247180859,2.37428,1940.9,1940.8,4.43762]
[1742247182573,2.37428,1940.9,1940.8,3.42662]
[1742247188767,2.37428,1940.9,1940.8,2.44352]
[1742247190278,2.37428,1940.9,1940.8,1.03052]
[1742247191170,2.37428,1940.9,1940.8,2.39762]
[1742247206588,1.03058,1940.9,1940.8,2.39762]
[1742247206774,2.37858,1940.9,1940.8,2.39762]
[1742247224700,2.37858,1940.9,1940.8,3.40102]
[1742247224899,2.92527,1941.0,1940.9,1.03053]
[1742247225104,4.29267,1941.0,1940.9,2.46113]
[1742247251430,4.29267,1941.0,1940.9,1.4306]
[1742247251735,4.29267,1941.0,1940.9,2.46113]
[1742247255938,4.29267,1941.0,1940.9,1.03053]
[1742247261243,4.29267,1941.0,1940.9,2.45603]
[1742247266048,2.39787,1941.0,1940.9,2.45603]
[1742247266251,1.03047,1941.0,1940.9,4.40973]
[1742247266453,5.97906,1941.1,1941.0,1.03047]
[1742247266454,2.38617,1941.1,1941.0,1.03047]
[1742247266751,1.03047,1941.1,1941.0,2.33547]
[1742247267451,2.38617,1941.1,1941.0,2.33547]
[1742247268152,1.03047,1941.1,1941.0,2.33547]
[1742247270052,2.40091101,1941.2,1941.1,1.03042]
[1742247270453,2.40091101,1941.2,1941.1,2.34322]
[1742247270654,1.03025,1941.5,1941.4,1.03026]
[1742247270851,2.35131,1941.5,1941.4,1.03026]
[1742247271255,1.3211,1941.5,1941.4,2.39456]
[1742247271554,1.03021,1941.5,1941.4,2.39456]
[1742247271950,5.56681101,1941.6,1941.5,1.03021]
[1742247272142,2.35901101,1941.6,1941.5,4.33281]
[1742247272346,2.35898101,1941.6,1941.5,4.33281]
[1742247273249,0.00772101,1941.6,1941.5,7.54061]
[1742247273949,1.03009,1941.8,1941.7,1.0301]
[1742247274151,1.02983,1942.3,1942.2,1.02984]
[1742247274344,1.02989,1942.1,1942.0,3.402]
[1742247274545,1.02994,1942.0,1941.9,2.46616]
[1742247274859,1.3853,1942.0,1941.9,2.46616]
[1742247275061,1.03765101,1942.1,1942.0,1.02994]
[1742247275351,1.03761101,1942.1,1942.0,2.46614]
[1742247275654,2.42291101,1942.1,1942.0,1.4362]
[1742247276459,2.42291101,1942.1,1942.0,2.46614]
[1742247277760,2.42291101,1942.1,1942.0,1.4362]
[1742247278257,2.42291101,1942.1,1942.0,2.46614]
[1742247278458,2.42291101,1942.1,1942.0,1.4362]
[1742247279063,1.03005,1941.8,1941.7,1.03009]
[1742247279465,1.0301,1941.7,1941.6,3.2078]
[1742247279660,1.03016,1941.6,1941.5,2.90478]
[1742247279861,1.03016,1941.6,1941.5,0.9464]
[1742247280064,1.03016,1941.6,1941.5,1.97661]
[1742247280065,1.99556,1941.6,1941.5,1.97661]
[1742247280564,3.40076,1941.6,1941.5,3.38581]
[1742247282561,3.40076,1941.6,1941.5,1.4092]
[1742247284463,3.40076,1941.6,1941.5,2.43941]
[1742247285368,3.40076,1941.6,1941.5,1.4092]
[1742247285870,3.40076,1941.6,1941.5,2.43941]
[1742247289472,3.40076,1941.6,1941.5,1.4092]
[1742247289673,3.40076,1941.6,1941.5,2.43941]
[1742247290865,3.40076,1941.6,1941.5,1.4092]
[1742247291564,3.40076,1941.6,1941.5,2.43941]
[1742247303079,2.3706,1941.6,1941.3,3.21552101]
[1742247303280,2.5757,1941.4,1941.0,2.02594]
[1742247303479,6.71891,1941.3,1941.2,1.3892]
[1742247303677,1.03047,1941.0,1940.9,5.23288]
[1742247303872,1.03047,1941.0,1940.9,4.23828]
[1742247304476,1.97387,1941.0,1940.9,4.23828]
[1742247304977,3.38337,1941.0,1940.9,2.42293]
[1742247306385,2.43997,1941.0,1940.9,2.42293]
[1742247310189,1.03047,1941.0,1940.9,2.42293]
[1742247310386,2.40937,1941.0,1940.9,2.42293]
[1742247310788,2.40937,1941.0,1940.9,5.63073]
[1742247313486,2.45443,1941.2,1941.1,1.03042]
[1742247314091,2.45443,1941.2,1941.1,2.38752]
[1742247317091,2.45443,1941.2,1941.1,5.59532]
[1742247320098,2.45443,1941.2,1941.1,2.38752]
[1742247320702,1.03053,1941.0,1940.9,1.03047]
[1742247322207,2.32853,1941.0,1940.9,2.43547]
[1742247324010,1.298,1941.0,1940.9,2.43547]
[1742247324612,7.63615,1941.4,1941.0,2.57606]
[1742247324815,3.36167,1941.3,1941.2,1.03031]
[1742247325109,4.29197,1941.3,1941.2,2.44691]
[1742247330410,4.29197,1941.3,1941.2,1.4166]
[1742247330715,1.03041,1941.2,1941.1,2.39477]
[1742247330908,2.45411,1941.2,1941.1,2.39477]
[1742247335307,2.45411,1941.2,1941.1,1.3644]
[1742247335622,1.03042,1941.1,1941.0,4.23823]
[1742247335814,2.43922,1941.1,1941.0,5.64513]
[1742247336119,2.43922,1941.1,1941.0,1.4069]
[1742247336315,2.43922,1941.1,1941.0,2.43737]
[1742247336515,2.43922,1941.1,1941.0,1.4069]
[1742247336818,1.03053,1940.9,1940.8,15.33748113]
[1742247337922,1.03053,1940.9,1940.8,12.12968113]
[1742247338221,2.35663,1940.9,1940.8,13.49268113]
[1742247338815,2.35663,1940.9,1940.8,16.70048113]
[1742247339923,2.35663,1940.9,1940.8,13.49268113]
[1742247343618,2.35663,1940.9,1940.8,12.48048113]
[1742247347529,2.35663,1940.9,1940.8,2.40127101]
[1742247349030,2.35663,1940.9,1940.8,1.37072101]
[1742247349825,2.57646,1940.8,1940.4,0.9806]
[1742247350026,2.57686,1940.5,1940.3,1.0267]
[1742247350219,1.0309,1940.3,1940.2,1.03086]
[1742247350531,1.0309,1940.3,1940.1,4.4231]
[1742247350532,1.0309,1940.2,1940.1,1.03092]
[1742247350724,1.03095,1940.1,1940.0,4.23877]
[1742247350923,1.98025,1940.1,1940.0,0.00772101]
[1742247351124,3.38735,1940.1,1940.0,1.35092101]
[1742247351526,3.38735,1940.1,1940.0,0.00772101]
[1742247352130,6.59515,1940.1,1940.0,0.00772101]
[1742247352739,3.38735,1940.1,1940.0,0.00772101]
[1742247353626,6.59515,1940.1,1940.0,0.00772101]
[1742247353935,3.38735,1940.1,1940.0,0.00772101]
[1742247355134,6.78435,1940.1,1940.0,1.03873101]